[Event "WSTCC-65 2024"]
[Site "Krakow"]
[Date "2024.07.04"]
[Round "3.3"]
[White "Glaessl, Matthias"]
[Black "Czajkowski, Ryszard"]
[Result "1/2-1/2"]
[ECO "C17"]
[WhiteElo "2196"]
[BlackElo "1975"]
[Annotator "RC"]
[PlyCount "72"]
[EventDate "2024.07.01"]
[EventType "team-tourn"]
[EventCountry "POL"]
[SourceTitle "playchess.com"]
[Source "ChessBase"]
[SourceQuality "1"]
[TimeControl "40/5400+30:1800+30"]

1. e4 {[%emt 0:00:03]} e6 {[%emt 0:00:05]} 2. d4 {[%emt 0:00:04]} d5 {[%emt 0:00:07]} 3. Nc3 {[%emt 0:00:06]} Bb4 {[%emt 0:00:19]} 4. e5 {[%emt 0:00:24]} c5 {[%emt 0:00:25]} 5. Bd2 {[%emt 0:01:44]} cxd4 {[%emt 0:02:34]} 6. Nb5 {[%emt 0:00:07]} Bf8 {[%emt 0:00:27]} 7. Nxd4 {[%emt 0:09:13]} Nc6 {[%emt 0:01:38]} 8. Bc3 {[%emt 0:00:23]} Nxd4 {[%emt 0:02:34]} 9. Qxd4 {[%emt 0:00:55]} Ne7 {[%emt 0:00:12]} 10. O-O-O {[%emt 0:01:54]} Nc6 {[%emt 0:04:15]} 11. Qg4 {[%emt 0:03:40]} Bd7 {[%emt 0:09:21]} 12. f4 {[%emt 0:15:00]} Qb6 {[%emt 0:12:45]} 13. Nf3 {[%emt 0:01:46]} Rc8 {[%emt 0:06:26]} 14. Nd4 {[%emt 0:07:19]} Nb4 {[%emt 0:11:19]} 15. Bxb4 {[%emt 0:03:15]} Qxb4 {[%emt 0:00:08]} 16. Qg3 {[%emt 0:06:18]} a6 {[%emt 0:14:59]} 17. Qb3 {[%emt 0:07:15]} Ba4 {[%emt 0:01:35]} 18. Qxb4 {[%emt 0:00:15]} Bxb4 {[%emt 0:00:02]} 19. Rd3 {[%emt 0:06:52]} Ke7 {[%emt 0:03:15]} 20. c3 {[%emt 0:03:17]} Bc5 {[%emt 0:01:47]} 21. Kd2 {[%emt 0:01:20]} Bd7 {[%emt 0:00:50]} 22. Be2 {[%emt 0:00:36]} b5 {[%emt 0:00:49]} 23. a3 {[%emt 0:01:08]} g6 {[%emt 0:01:59]} 24. Rc1 {[%emt 0:06:35]} Rb8 {[%emt 0:01:14]} 25. b4 {[%emt 0:01:09]} Bb6 {[%emt 0:01:16]} 26. Rf3 {[%emt 0:01:11]} Ra8 {[%emt 0:04:57]} 27. g4 {[%emt 0:01:15]} h5 {[%emt 0:00:21]} 28. g5 {[%emt 0:02:15]} Rhc8 {[%emt 0:00:38]} 29. Rff1 {[%emt 0:02:32]} Ra7 {[%emt 0:00:30]} 30. Rc2 {[%emt 0:02:52]} Rac7 {[%emt 0:01:29]} 31. Rfc1 {[%emt 0:00:23]} Ra8 {[%emt 0:05:19]} 32. Rb1 {[%emt 0:01:09]} Rac8 {[%emt 0:00:18]} 33. Rbb2 {[%emt 0:00:32]} Ra8 {[%emt 0:00:17]} 34. Bd3 {[%emt 0:00:26]} Be8 {[%emt 0:00:31]} 35. Rb1 {[%emt 0:00:24]} Bd7 {[%emt 0:00:22]} 36. Rbb2 {[%emt 0:00:16]} Be8 1/2-1/2

[Event "WSTCC-65 2024"]
[Site "Krakow"]
[Date "2024.07.04"]
[Round "3.3"]
[White "Morriss, Pete"]
[Black "Moyses Sobrinho, Elias"]
[Result "0-1"]
[ECO "B13"]
[WhiteElo "1982"]
[BlackElo "1908"]
[Annotator "NA RC"]
[PlyCount "112"]
[EventDate "2024.07.01"]
[EventType "team-tourn"]
[EventCountry "POL"]
[SourceTitle "playchess.com"]
[Source "ChessBase"]
[SourceQuality "1"]
[TimeControl "40/5400+30:1800+30"]

1. e4 {[%emt 0:03:13]} d5 {[%emt 0:02:28]} 2. exd5 {[%emt 0:00:11]} Nf6 {[%emt 0:00:24]} 3. c4 {[%emt 0:01:50]} c6 {[%emt 0:00:08]} 4. d4 {[%emt 0:00:12]} cxd5 {[%emt 0:00:08]} 5. Nc3 {[%emt 0:00:10]} Nc6 {[%emt 0:01:03]} 6. Nf3 {[%emt 0:00:16]} g6 {[%emt 0:02:20]} 7. h3 {[%emt 0:04:23]} Bg7 {[%emt 0:00:23]} 8. Be2 {[%emt 0:01:34]} O-O {[%emt 0:00:25]} 9. O-O {[%emt 0:00:24]} dxc4 {[%emt 0:01:27]} 10. Bxc4 {[%emt 0:00:29]} Na5 {[%emt 0:03:39]} 11. Be2 {[%emt 0:04:02]} Nd5 {[%emt 0:02:32]} 12. Nxd5 {[%emt 0:12:46]} Qxd5 {[%emt 0:00:11]} 13. Bf4 {[%emt 0:00:40]} Nc6 {[%emt 0:01:04]} 14. Rc1 {[%emt 0:10:03]} Nxd4 {[%emt 0:02:20]} 15. Nxd4 {[%emt 0:03:09]} Qxd4 {[%emt 0:01:29]} 16. Qxd4 {[%emt 0:01:55]} Bxd4 {[%emt 0:00:09]} 17. Rc7 {[%emt 0:00:54]} Bxb2 {[%emt 0:05:59]} 18. Rxe7 {[%emt 0:01:53]} Bf6 {[%emt 0:00:38]} 19. Rc7 {[%emt 0:01:10]} Bd8 {[%emt 0:04:02]} 20. Rcc1 {[%emt 0:05:27]} Bb6 {[%emt 0:03:49]} 21. Bf3 {[%emt 0:02:55]} Kg7 {[%emt 0:01:05]} 22. Rfe1 {[%emt 0:02:50]} h6 {[%emt 0:05:19]} 23. Re7 {[%emt 0:08:18]} Be6 {[%emt 0:02:58]} 24. Be5+ {[%emt 0:04:41]} Kg8 {[%emt 0:01:11]} 25. Bxb7 {[%emt 0:03:08]} Rae8 {[%emt 0:01:21]} 26. Rxe8 {[%emt 0:09:33]} Rxe8 {[%emt 0:00:07]} 27. a3 {[%emt 0:00:26]} Bxh3 {[%emt 0:00:44]} 28. Bf4 {[%emt 0:03:15]} Bf5 {[%emt 0:00:39]} 29. Ba6 {[%emt 0:06:08]} g5 {[%emt 0:02:09]} 30. Bd2 {[%emt 0:01:37]} Rd8 {[%emt 0:05:31]} 31. Bc3 {[%emt 0:00:53]} Bd3 {[%emt 0:00:31]} 32. Bxd3 {[%emt 0:00:50]} Rxd3 {[%emt 0:00:06]} 33. Bb4 {[%emt 0:03:43]} Rb3 {[%emt 0:00:48]} 34. Rc6 {[%emt 0:01:57]} Kh7 {[%emt 0:01:30]} 35. Rc2 {[%emt 0:00:11]} Kg6 {[%emt 0:02:57]} 36. g4 {[%emt 0:00:19]} Rg3+ {[%emt 0:00:29]} 37. Kf1 {[%emt 0:00:42]} Rxg4 {[%emt 0:00:08]} 38. Rc6+ {[%emt 0:00:53]} f6 {[%emt 0:00:51]} 39. f3 {[%emt 0:01:11]} Rf4 {[%emt 0:01:56]} 40. Kg2 {[%emt 0:00:54]} h5 {[%emt 0:00:58]} 41. Bd6 {[%emt 0:07:40]} Rf5 {[%emt 0:00:20]} 42. Kg3 {[%emt 0:02:25]} Rd5 {[%emt 0:02:50]} 43. Be7 {[%emt 0:03:10]} Bd4 {[%emt 0:05:55]} 44. a4 {[%emt 0:09:12]} Be5+ {[%emt 0:00:22]} 45. Kf2 {[%emt 0:01:32]} h4 {[%emt 0:01:22]} 46. f4 {[%emt 0:03:32]} gxf4 {[%emt 0:00:52]} 47. Rc8 {[%emt 0:02:42]} Kf5 {[%emt 0:01:12]} 48. Rh8 {[%emt 0:00:40]} Rd2+ {[%emt 0:01:09]} 49. Kf1 {[%emt 0:00:37]} Kg4 {[%emt 0:00:21]} 50. Rg8+ {[%emt 0:01:18]} Kf3 {[%emt 0:00:19]} 51. Kg1 {[%emt 0:01:13]} h3 {[%emt 0:00:15]} 52. Rh8 {[%emt 0:00:31]} Bd4+ {[%emt 0:05:33]} 53. Kh1 {[%emt 0:00:08]} h2 {[%emt 0:00:53]} 54. a5 {[%emt 0:01:16]} a6 {[%emt 0:02:04]} 55. Bc5 {[%emt 0:01:09]} Rd1+ {[%emt 0:00:24]} 56. Kxh2 {[%emt 0:00:08]} Bxc5 {[%emt 0:00:09]} 0-1

[Event "WSTCC-65 2024"]
[Site "Krakow"]
[Date "2024.07.04"]
[Round "3.4"]
[White "Vogel, Robert"]
[Black "Chapman, Terry P D"]
[Result "0-1"]
[ECO "D30"]
[WhiteElo "2085"]
[BlackElo "2287"]
[Annotator "RC"]
[PlyCount "54"]
[EventDate "2024.07.01"]
[EventType "team-tourn"]
[EventCountry "POL"]
[SourceTitle "playchess.com"]
[Source "ChessBase"]
[SourceQuality "1"]
[TimeControl "40/5400+30:1800+30"]

1. d4 {[%emt 0:00:05]} d5 {[%emt 0:00:07]} 2. c4 {[%emt 0:00:15]} e6 {[%emt 0:00:05]} 3. Nf3 {[%emt 0:01:24]} Nf6 {[%emt 0:00:08]} 4. g3 {[%emt 0:01:02]} Bb4+ {[%emt 0:00:11]} 5. Nbd2 {[%emt 0:02:07]} dxc4 {[%emt 0:00:28]} 6. Qc2 {[%emt 0:00:36]} b5 {[%emt 0:01:26]} 7. a4 {[%emt 0:03:18]} c6 {[%emt 0:00:52]} 8. Bg2 {[%emt 0:00:26]} Bb7 {[%emt 0:00:42]} 9. O-O {[%emt 0:00:24]} a6 {[%emt 0:03:31]} 10. b3 {[%emt 0:03:15]} cxb3 {[%emt 0:07:53]} 11. Qxb3 {[%emt 0:02:08]} a5 {[%emt 0:08:16]} 12. Ne5 {[%emt 0:29:51]} Qxd4 {[%emt 0:13:29]} 13. Bb2 {[%emt 0:02:30]} bxa4 {[%emt 0:10:33]} 14. Bxd4 {[%emt 0:07:38]} axb3 {[%emt 0:00:05]} 15. Nxb3 {[%emt 0:00:13]} Nd5 {[%emt 0:16:42]} 16. Nd3 {[%emt 0:11:23]} O-O {[%emt 0:05:10]} 17. Nxb4 {[%emt 0:06:38]} axb4 {[%emt 0:01:20]} 18. Nc5 {[%emt 0:00:24]} Rxa1 {[%emt 0:04:45]} 19. Rxa1 {[%emt 0:00:05]} Bc8 {[%emt 0:00:11]} 20. Ra7 {[%emt 0:10:47]} Nc3 {[%emt 0:03:05]} 21. Bxc3 {[%emt 0:04:02]} bxc3 {[%emt 0:00:05]} 22. Be4 {[%emt 0:00:13]} e5 {[%emt 0:04:08]} 23. Kf1 {[%emt 0:00:46]} Rd8 {[%emt 0:08:30]} 24. Ra8 {[%emt 0:06:29]} Na6 {[%emt 0:02:31]} 25. Rxc8 {[%emt 0:02:05]} Rxc8 {[%emt 0:00:04]} 26. Nxa6 {[%emt 0:00:05]} Ra8 {[%emt 0:00:46]} 27. Nc5 {[%emt 0:01:14]} c2 {[%emt 0:01:49]} 0-1

[Event "WSTCC-65 2024"]
[Site "Krakow"]
[Date "2024.07.04"]
[Round "3.4"]
[White "Krupa, Jerzy"]
[Black "Schulz, Michael"]
[Result "0-1"]
[ECO "B06"]
[WhiteElo "1885"]
[BlackElo "2109"]
[Annotator "NA RC"]
[PlyCount "70"]
[EventDate "2024.07.01"]
[EventType "team-tourn"]
[EventCountry "POL"]
[SourceTitle "playchess.com"]
[Source "ChessBase"]
[SourceQuality "1"]
[TimeControl "40/5400+30:1800+30"]

1. e4 {[%emt 0:00:02]} g6 {[%emt 0:00:15]} 2. d4 {[%emt 0:00:11]} Bg7 {[%emt 0:00:04]} 3. Nc3 {[%emt 0:00:57]} c5 {[%emt 0:00:24]} 4. dxc5 {[%emt 0:01:13]} Bxc3+ {[%emt 0:00:10]} 5. bxc3 {[%emt 0:00:07]} Qa5 {[%emt 0:00:03]} 6. Qd4 {[%emt 0:02:39]} Nf6 {[%emt 0:00:07]} 7. Qb4 {[%emt 0:00:20]} Qc7 {[%emt 0:00:07]} 8. Nf3 {[%emt 0:00:34]} Nc6 {[%emt 0:00:27]} 9. Qa4 {[%emt 0:00:23]} Ne5 {[%emt 0:01:13]} 10. Qd4 {[%emt 0:00:39]} Nxf3+ {[%emt 0:06:04]} 11. gxf3 {[%emt 0:00:03]} e5 {[%emt 0:00:47]} 12. Qb4 {[%emt 0:01:23]} O-O {[%emt 0:00:40]} 13. Bg5 {[%emt 0:14:26]} Kg7 {[%emt 0:03:29]} 14. O-O-O {[%emt 0:01:16]} Ng8 {[%emt 0:02:06]} 15. Rd6 {[%emt 0:05:02]} f6 {[%emt 0:20:08]} 16. Be3 {[%emt 0:01:07]} Ne7 {[%emt 0:00:28]} 17. f4 {[%emt 0:06:49]} Nc6 {[%emt 0:01:44]} 18. Qa3 {[%emt 0:11:08]} b6 {[%emt 0:05:51]} 19. Bb5 {[%emt 0:11:47]} Bb7 {[%emt 0:06:08]} 20. Rhd1 {[%emt 0:01:33]} Rf7 {[%emt 0:00:46]} 21. Bc4 {[%emt 0:06:08]} Re7 {[%emt 0:00:28]} 22. cxb6 {[%emt 0:02:51]} axb6 {[%emt 0:00:11]} 23. Rxc6 {[%emt 0:15:11]} dxc6 {[%emt 0:00:16]} 24. Bxb6 {[%emt 0:02:24]} Rxa3 {[%emt 0:00:10]} 25. Bxc7 {[%emt 0:00:41]} Rxc7 {[%emt 0:00:09]} 26. Kb2 {[%emt 0:01:23]} Ra8 {[%emt 0:00:45]} 27. f5 {[%emt 0:04:50]} c5 {[%emt 0:02:05]} 28. f3 {[%emt 0:01:05]} Rb8 {[%emt 0:01:24]} 29. Kc1 {[%emt 0:00:43]} gxf5 {[%emt 0:01:49]} 30. Rg1+ {[%emt 0:00:33]} Kh8 {[%emt 0:00:14]} 31. exf5 {[%emt 0:02:36]} Bxf3 {[%emt 0:00:21]} 32. Be6 {[%emt 0:00:24]} Rd8 {[%emt 0:00:59]} 33. h4 {[%emt 0:01:48]} e4 {[%emt 0:01:33]} 34. Kb2 {[%emt 0:03:45]} Rb7+ {[%emt 0:01:41]} 35. Kc1 {[%emt 0:00:01]} e3 {[%emt 0:00:22]} 0-1

[Event "WSTCC-65 2024"]
[Site "Krakow"]
[Date "2024.07.04"]
[Round "3.4"]
[White "Vieira, Alexandre Letizio"]
[Black "MacElligott, Gerard"]
[Result "0-1"]
[ECO "B30"]
[WhiteElo "1825"]
[BlackElo "1993"]
[Annotator "NA RC"]
[PlyCount "98"]
[EventDate "2024.07.01"]
[EventType "team-tourn"]
[EventCountry "POL"]
[SourceTitle "playchess.com"]
[Source "ChessBase"]
[SourceQuality "1"]
[TimeControl "40/5400+30:1800+30"]

1. e4 {[%emt 0:00:01]} c5 {[%emt 0:03:31]} 2. Nf3 {[%emt 0:00:09]} Nc6 {[%emt 0:00:07]} 3. d3 {[%emt 0:00:04]} g6 {[%emt 0:00:47]} 4. g3 {[%emt 0:00:07]} Bg7 {[%emt 0:00:08]} 5. Bg2 {[%emt 0:00:04]} d6 {[%emt 0:01:41]} 6. c3 {[%emt 0:01:29]} e5 {[%emt 0:01:33]} 7. a4 {[%emt 0:01:09]} Nge7 {[%emt 0:00:14]} 8. Na3 {[%emt 0:03:29]} O-O {[%emt 0:06:13]} 9. O-O {[%emt 0:01:07]} h6 {[%emt 0:03:39]} 10. Nh4 {[%emt 0:03:23]} Be6 {[%emt 0:07:32]} 11. Qe1 {[%emt 0:02:37]} d5 {[%emt 0:06:35]} 12. exd5 {[%emt 0:11:42]} Nxd5 {[%emt 0:03:10]} 13. Nc4 {[%emt 0:00:17]} Qc7 {[%emt 0:01:43]} 14. Ne3 {[%emt 0:04:10]} Nde7 {[%emt 0:06:21]} 15. Nc4 {[%emt 0:03:10]} Rad8 {[%emt 0:02:58]} 16. Qe2 {[%emt 0:02:25]} Qd7 {[%emt 0:03:56]} 17. Be3 {[%emt 0:06:30]} Qxd3 {[%emt 0:02:48]} 18. Qxd3 {[%emt 0:00:56]} Rxd3 {[%emt 0:02:18]} 19. Na3 {[%emt 0:00:35]} b6 {[%emt 0:01:22]} 20. Rfe1 {[%emt 0:02:27]} Rfd8 {[%emt 0:08:29]} 21. Nb5 {[%emt 0:05:48]} Bb3 {[%emt 0:07:06]} 22. Bf3 {[%emt 0:05:22]} g5 {[%emt 0:06:59]} 23. Bxc6 {[%emt 0:08:23]} Nxc6 {[%emt 0:02:01]} 24. Nf5 {[%emt 0:03:35]} Bf8 {[%emt 0:02:52]} 25. h4 {[%emt 0:00:23]} f6 {[%emt 0:03:01]} 26. hxg5 {[%emt 0:00:06]} hxg5 {[%emt 0:00:14]} 27. Kg2 {[%emt 0:02:03]} Kf7 {[%emt 0:04:32]} 28. g4 {[%emt 0:02:22]} Rd1 {[%emt 0:02:39]} 29. a5 {[%emt 0:01:37]} Rxe1 {[%emt 0:02:50]} 30. Rxe1 {[%emt 0:00:05]} Bc4 {[%emt 0:01:44]} 31. Na3 {[%emt 0:02:09]} Bd5+ {[%emt 0:00:51]} 32. Kg3 {[%emt 0:00:11]} Nxa5 {[%emt 0:00:19]} 33. Nb5 {[%emt 0:00:58]} Nc6 {[%emt 0:01:34]} 34. Ra1 {[%emt 0:01:19]} a5 {[%emt 0:01:20]} 35. Nc7 {[%emt 0:00:18]} Bc4 {[%emt 0:01:46]} 36. Rh1 {[%emt 0:00:07]} Kg6 {[%emt 0:01:18]} 37. f3 {[%emt 0:01:23]} Ne7 {[%emt 0:00:37]} 38. b4 {[%emt 0:01:58]} axb4 {[%emt 0:00:33]} 39. cxb4 {[%emt 0:00:06]} Nxf5+ {[%emt 0:00:13]} 40. gxf5+ {[%emt 0:00:09]} Kxf5 {[%emt 0:00:19]} 41. bxc5 {[%emt 0:30:13]} Bxc5 {[%emt 0:06:40]} 42. Bxc5 {[%emt 0:00:00]} bxc5 {[%emt 0:00:02]} 43. Rc1 {[%emt 0:00:00]} Rc8 {[%emt 0:00:25]} 44. Rxc4 {[%emt 0:00:00]} Rxc7 {[%emt 0:00:05]} 45. Kh3 {[%emt 0:00:00]} Ke6 {[%emt 0:00:22]} 46. Kg4 {[%emt 0:00:00]} Kd5 {[%emt 0:01:27]} 47. Rc1 {[%emt 0:00:00]} c4 {[%emt 0:00:28]} 48. Kf5 {[%emt 0:00:00]} Rc6 {[%emt 0:00:14]} 49. Rd1+ {[%emt 0:00:00]} Kc5 {[%emt 0:00:18]} 0-1

[Event "WSTCC-65 2024"]
[Site "Krakow"]
[Date "2024.07.04"]
[Round "3.5"]
[White "Garcia Palermo, Carlos Horacio"]
[Black "Mikhalevski, Alexander"]
[Result "1/2-1/2"]
[ECO "A46"]
[WhiteElo "2419"]
[BlackElo "2393"]
[Annotator "TA"]
[PlyCount "171"]
[EventDate "2024.07.01"]
[EventType "team-tourn"]
[EventCountry "POL"]
[SourceTitle "playchess.com"]
[Source "ChessBase"]
[SourceQuality "1"]
[TimeControl "40/5400+30:1800+30"]

{[%evp 63,171,52,148,152,149,150,179,174,170,179,179,166,228,228,220,203,197,197,195,197,219,215,216,171,214,172,172,171,171,171,171,171,171,164,172,179,187,182,635,204,304,297,2062,165,165,165,391,408,262,262,552,533,475,177,164,104,104,104,104,104,104,104,104,104,110,107,119,119,112,104,104,81,104,81,81,59,104,47,39,39,47,47,47,47,62,47,47,47,47,47,47,47,47,47,47,47,47,47,47,47,47,47,47,47,47,32,32,32,32,32]} 1. d4 {[%emt 0:00:04]} Nf6 {[%emt 0:00:06]} 2. Nf3 {[%emt 0:02:08]} d5 {[%emt 0:00:08]} 3. c4 {[%emt 0:00:21]} e6 {[%emt 0:00:11]} 4. cxd5 {[%emt 0:02:44]} exd5 {[%emt 0:00:10]} 5. Qc2 {[%emt 0:00:11]} Be7 {[%emt 0:01:46]} 6. Bf4 {[%emt 0:00:43] D30: Queen's Gambit Declined: Systems without Nc3.} c5 {[%emt 0:11:46]} 7. dxc5 $146 {[%emt 0:01:31]} ({Predecessor:} 7. e3 c4 8. Nc3 Qa5 9. Be2 b5 10. O-O b4 11. Qa4+ Qxa4 12. Nxa4 Ne4 13. Rfd1 {0-1 Antoshin,V-Bronstein,D URS-ch24 Final 1957 (8)}) 7... Nc6 {[%emt 0:00:11]} 8. Nbd2 {[%emt 0:10:22]} Qa5 {[%emt 0:00:42]} 9. e3 {[%emt 0:02:55]} Ne4 {[%emt 0:03:03]} 10. Nd4 {[%emt 0:06:42]} Nxd2 {[%emt 0:24:55]} 11. Qxd2 {[%emt 0:02:52]} Qxd2+ {[%emt 0:00:12]} 12. Kxd2 {[%emt 0:00:06]} Bxc5 {[%emt 0:00:08]} 13. Bb5 {[%emt 0:18:47]} Bd7 {[%emt 0:00:55]} 14. Bxc6 {[%emt 0:01:03]} bxc6 {[%emt 0:00:28]} 15. Rac1 {[%emt 0:01:04]} Bb4+ {[%emt 0:07:52]} 16. Ke2 {[%emt 0:01:18]} c5 {[%emt 0:01:04]} 17. Bd6 {[%emt 0:06:13]} Rc8 {[%emt 0:03:05]} 18. Rhd1 {[%emt 0:07:43]} h5 {[%emt 0:11:54]} 19. a3 {[%emt 0:09:54]} Bxa3 {[%emt 0:01:46]} 20. bxa3 {[%emt 0:01:28]} cxd4 {[%emt 0:00:09]} 21. Rxc8+ {[%emt 0:00:30]} Bxc8 {[%emt 0:00:05]} 22. Rxd4 {[%emt 0:00:17]} Bb7 {[%emt 0:10:20]} 23. Rb4 {[%emt 0:09:12]} Bc8 {[%emt 0:02:52]} 24. Bc5 {[%emt 0:01:34]} a6 {[%emt 0:00:35]} 25. Kd3 {[%emt 0:00:44]} Rh6 {[%emt 0:00:42]} 26. Kd4 {[%emt 0:00:37]} Rg6 {[%emt 0:06:47]} 27. g3 {[%emt 0:01:33]} Kd7 {[%emt 0:02:32]} 28. Kxd5 {[%emt 0:01:31]} Kc7 {[%emt 0:00:08]} 29. e4 {[%emt 0:02:53]} Bb7+ {[%emt 0:01:44]} 30. Kd4 {[%emt 0:00:04]} h4 {[%emt 0:00:10]} 31. e5 {[%emt 0:02:13]} hxg3 {[%emt 0:01:25]} 32. hxg3 {[%emt 0:00:06]} Bc6 {[%emt 0:02:06]} (32... Rg4+ $14 33. Ke3 Rxb4 34. Bxb4 (34. axb4 Kc6 $14) 34... Kd7) 33. Bd6+ $16 {[%emt 0:00:49]} Kd7 {[%emt 0:00:08]} 34. Kc5 $1 {[%emt 0:00:45]} Bg2 {[%emt 0:04:08]} 35. Rb6 {[%emt 0:01:21]} f6 {[%emt 0:00:48]} 36. Rxa6 {[%emt 0:00:26]} fxe5 {[%emt 0:00:05]} 37. Ra7+ {[%emt 0:00:16]} Kc8 {[%emt 0:00:31]} (37... Ke6 $142 38. Re7+ Kf6 39. Rxe5 (39. Bxe5+ $2 Kxe7 40. a4 Rc6+ 41. Kb4 Rb6+ 42. Kc3 Rc6+ 43. Kb4 Kf8 $19) 39... Rg4) 38. Bxe5 $18 {[%emt 0:01:33]} Rc6+ {[%emt 0:00:05]} 39. Kd4 {[%emt 0:01:47]} g6 {[%emt 0:00:38]} 40. g4 {[%emt 0:02:03]} Bf3 {[%emt 0:00:41]} 41. g5 {[%emt 0:30:14]} Bg4 {[%emt 0:31:44]} 42. f4 {[%emt 0:01:36]} Be6 {[%emt 0:00:55]} 43. Rg7 {[%emt 0:01:08]} Rc4+ {[%emt 0:00:23]} 44. Kd3 {[%emt 0:00:37]} Ra4 {[%emt 0:01:56]} 45. Bd6 {[%emt 0:00:00]} (45. Rxg6 $2 {is the wrong capture.} Bf5+ (45... Rxa3+ $2 {perishes.} 46. Ke4 $18) 46. Kc3 Bxg6 $19) 45... Bf5+ {[%emt 0:00:00]} 46. Kc3 {[%emt 0:00:00]} Ra6 {[%emt 0:00:00]} 47. Bc5 {[%emt 0:00:00]} Rc6 {[%emt 0:00:00]} 48. Kd4 {[%emt 0:00:00]} Rc7 {[%emt 0:00:00] [#]} 49. Rg8+ $1 {[%emt 0:00:00]} Kb7 {[%emt 0:00:00]} 50. Rf8 {[%emt 0:00:00]} Rc8 $2 {[%emt 0:00:00]} (50... Rd7+ 51. Kc4 Be6+ 52. Kc3 Rd1) 51. Rf6 $2 {[%emt 0:00:00]} (51. Rxf5 {White threatens Rf7+ and mate.} gxf5 52. Kd5) 51... Rc6 {[%emt 0:00:00]} (51... Re8 {was necessary.} 52. Bd6 Bb1) 52. Kd5 $18 {[%emt 0:00:00]} Rc8 $2 {[%emt 0:00:00]} (52... Bg4 53. Bd6 (53. Rxc6 Bf3+ 54. Kd6 Bxc6 $18) 53... Bf3+ 54. Ke5 Bh5) 53. Bd6 $2 {[%emt 0:00:00]} (53. Rxf5 {Intending Rf7+ and mate.} gxf5 54. Be7) 53... Bc2 {[%emt 0:00:00]} 54. Ke6 {[%emt 0:00:00]} Kc6 $2 {[%emt 0:00:00]} (54... Ra8 {might work better.} 55. Kf7 Ra7) 55. Kf7 $18 {[%emt 0:00:00]} Kd5 {[%emt 0:00:00]} 56. Be5 {[%emt 0:00:00]} Ra8 $2 {[%emt 0:00:00]} (56... Rc6 57. a4 Kc5 58. Bd4+ Kd5) 57. Rd6+ $18 {[%emt 0:00:00]} Kc5 {[%emt 0:00:00]} 58. Rd2 $2 {[%emt 0:00:00]} (58. Kg7) 58... Bf5 {[%emt 0:00:00]} 59. Bd6+ {[%emt 0:00:00]} (59. Kg7 $18) 59... Kc6 $16 {[%emt 0:00:00]} 60. Bb4 {[%emt 0:00:00]} Ra7+ {[%emt 0:00:00]} 61. Kf6 {[%emt 0:00:00]} Rd7 {[%emt 0:00:00]} 62. Rf2 {[%emt 0:00:00]} Rd4 {[%emt 0:00:00]} 63. Bc3 {[%emt 0:00:00]} Rd6+ {[%emt 0:00:00]} 64. Kg7 {[%emt 0:00:00]} Rd7+ {[%emt 0:00:00]} 65. Kh6 {[%emt 0:00:00]} Rd3 {[%emt 0:00:00]} 66. Bb4 {[%emt 0:00:00]} Rd4 {[%emt 0:00:00]} 67. Bf8 {[%emt 0:01:41]} Kd7 {[%emt 0:00:00]} 68. Kg7 {[%emt 0:02:29]} Ke6 {[%emt 0:00:00]} 69. Re2+ {[%emt 0:00:47]} Re4 {[%emt 0:02:12] [#]} 70. Rb2 {[%emt 0:01:24]} (70. Rxe4+ $1 $16 Bxe4 71. a4) 70... Rxf4 $14 {[%emt 0:00:11]} 71. Rb6+ {[%emt 0:00:07]} Kd7 {[%emt 0:00:47]} 72. Bb4 {[%emt 0:00:38]} Bc2 {[%emt 0:00:32]} 73. Rd6+ {[%emt 0:00:04]} Ke8 {[%emt 0:00:41]} 74. Rd2 {[%emt 0:00:26]} Rf7+ {[%emt 0:01:55]} 75. Kh6 {[%emt 0:02:29]} Rc7 {[%emt 0:01:18]} 76. Bd6 {[%emt 0:01:05]} Rc4 {[%emt 0:00:09]} 77. Kg7 {[%emt 0:00:44]} Kd7 {[%emt 0:00:40]} 78. Kf6 {[%emt 0:00:42]} Bf5 {[%emt 0:00:33]} 79. Be7+ {[%emt 0:01:10]} Kc6 {[%emt 0:00:17]} 80. Rd6+ {[%emt 0:01:31]} Kb5 {[%emt 0:00:36]} 81. Rd5+ {[%emt 0:01:16]} Kc6 $1 {[%emt 0:00:30]} 82. Ra5 {[%emt 0:00:16]} Bc2 {[%emt 0:00:44]} 83. Bb4 {[%emt 0:01:14]} Bf5 {[%emt 0:00:33]} 84. Ra6+ {[%emt 0:01:08]} Kb7 {[%emt 0:00:05]} 85. Rd6 {[%emt 0:00:30]} Rc6 {[%emt 0:00:10]} 86. Rxc6 1/2-1/2

[Event "WSTCC-65 2024"]
[Site "Krakow"]
[Date "2024.07.04"]
[Round "3.5"]
[White "Quinn, John M"]
[Black "Gibbons, Robert"]
[Result "1-0"]
[ECO "D46"]
[WhiteElo "2073"]
[BlackElo "1908"]
[Annotator "NA RC"]
[PlyCount "81"]
[EventDate "2024.07.01"]
[EventType "team-tourn"]
[EventCountry "POL"]
[SourceTitle "playchess.com"]
[Source "ChessBase"]
[SourceQuality "1"]
[TimeControl "40/5400+30:1800+30"]

1. d4 {[%emt 0:00:03]} d5 {[%emt 0:00:15]} 2. c4 {[%emt 0:00:05]} c6 {[%emt 0:00:27]} 3. Nf3 {[%emt 0:00:22]} Nf6 {[%emt 0:00:31]} 4. Nc3 {[%emt 0:00:07]} e6 {[%emt 0:00:11]} 5. e3 {[%emt 0:01:02]} Nbd7 {[%emt 0:01:39]} 6. Bd3 {[%emt 0:01:57]} Be7 {[%emt 0:02:52]} 7. O-O {[%emt 0:02:09]} O-O {[%emt 0:00:39]} 8. b3 {[%emt 0:05:20]} Re8 {[%emt 0:02:14]} 9. Bb2 {[%emt 0:01:10]} b6 {[%emt 0:06:03]} 10. e4 {[%emt 0:05:01]} dxe4 {[%emt 0:00:34]} 11. Nxe4 {[%emt 0:00:06]} Nxe4 12. Bxe4 Bb7 {[%emt 0:01:45]} 13. Bc2 {[%emt 0:05:23]} Qc7 {[%emt 0:05:22]} 14. Qd3 {[%emt 0:03:45]} Nf8 {[%emt 0:01:16]} 15. Rad1 {[%emt 0:13:17]} Rad8 {[%emt 0:01:46]} 16. Qe3 {[%emt 0:19:17]} c5 {[%emt 0:08:01]} 17. Rfe1 {[%emt 0:10:01]} Bf6 {[%emt 0:05:05]} 18. Ne5 {[%emt 0:01:46]} Bxe5 19. dxe5 Rxd1 {[%emt 0:12:36]} 20. Rxd1 {[%emt 0:00:36]} Rd8 {[%emt 0:00:19]} 21. Rd3 {[%emt 0:06:39]} Rd7 {[%emt 0:03:14]} 22. Qd2 {[%emt 0:00:47]} Bc6 {[%emt 0:02:52]} 23. f3 {[%emt 0:01:56]} Rxd3 {[%emt 0:03:42]} 24. Qxd3 {[%emt 0:00:05]} Qd7 {[%emt 0:00:11]} 25. Kf2 {[%emt 0:01:33]} Qxd3 {[%emt 0:02:26]} 26. Bxd3 {[%emt 0:00:03]} Nd7 {[%emt 0:00:36]} 27. h4 {[%emt 0:02:26]} f6 {[%emt 0:04:26]} 28. exf6 {[%emt 0:01:54]} gxf6 {[%emt 0:00:40]} 29. Ke3 {[%emt 0:03:04]} Kg7 {[%emt 0:00:47]} 30. g4 {[%emt 0:03:55]} h6 {[%emt 0:00:42]} 31. g5 {[%emt 0:04:01]} hxg5 {[%emt 0:03:20]} 32. hxg5 {[%emt 0:00:00]} e5 {[%emt 0:00:45]} 33. f4 {[%emt 0:02:38]} Bg2 {[%emt 0:10:02]} 34. gxf6+ {[%emt 0:01:42]} Kxf6 {[%emt 0:00:15]} 35. fxe5+ {[%emt 0:00:14]} Nxe5 {[%emt 0:00:28]} 36. Kf4 {[%emt 0:00:08]} Ke6 {[%emt 0:01:56]} 37. Bxe5 {[%emt 0:00:07]} Kd7 {[%emt 0:01:02]} 38. Be4 {[%emt 0:01:18]} Bf1 {[%emt 0:01:22]} 39. Bb8 {[%emt 0:00:45]} a5 {[%emt 0:00:31]} 40. Ke5 {[%emt 0:00:33]} Bh3 {[%emt 0:05:50]} 41. Bf5+ {[%emt 0:30:52]} 1-0